bitfinex/quotes_SOLUSD_20260102
["timestamp","ask_amount","ask_price","bid_price","bid_amount"]
[1767327137913,3.16931681,127.39,127.37,0.66274551]
[1767327143524,3.82654441,127.39,127.36,0.66274551]
[1767327143919,3.82654441,127.38,127.36,0.66274551]
[1767327144517,3.19931681,127.38,127.36,0.66274551]
[1767327145827,3.19931681,127.37,127.36,0.66274551]
[1767327146022,3.82654441,127.38,127.36,0.66274551]
[1767327147133,3.82654441,127.37,127.35,14.34]
[1767327147428,3.19931681,127.37,127.35,15.05271321]
[1767327149330,3.82654441,127.38,127.35,15.05271321]
[1767327150128,3.19931681,127.38,127.35,14.34]
[1767327150346,0.6272276,127.37,127.35,14.34]
[1767327150627,3.82654441,127.37,127.35,14.34]
[1767327151232,0.6272276,127.37,127.35,15.05271321]
[1767327151432,0.6272276,127.38,127.36,0.71271321]
[1767327151729,7.84994346,127.39,127.36,0.71271321]
[1767327151730,11.04926027,127.39,127.36,0.71271321]
[1767327151934,11.67648787,127.39,127.36,0.71271321]
[1767327153828,3.19931681,127.38,127.36,0.71271321]
[1767327154534,3.82654441,127.38,127.36,0.71271321]
[1767327155037,3.82654441,127.38,127.35,15.05271321]
[1767327155241,0.6272276,127.38,127.35,14.34]
[1767327155537,0.6272276,127.38,127.35,15.05271321]
[1767327155538,3.82654441,127.38,127.35,15.05271321]
[1767327156316,0.6272276,127.38,127.35,15.05271321]
[1767327156515,3.82654441,127.37,127.34,0.71271321]
[1767327156811,3.82654441,127.36,127.33,15.05271321]
[1767327159039,0.6272276,127.36,127.33,15.05271321]
[1767327159621,3.82654441,127.37,127.34,0.71271321]
[1767327164320,3.19931681,127.37,127.34,0.71271321]
[1767327164520,0.6272276,127.38,127.34,0.71271321]
[1767327164726,3.82654441,127.38,127.34,0.71271321]
[1767327165754,0.6272276,127.4,127.35,3.19931681]
[1767327166052,3.19931681,127.39,127.36,0.71271321]
[1767327168422,3.82654441,127.39,127.36,0.71271321]
[1767327169346,0.6272276,127.39,127.36,0.71271321]
[1767327169563,0.6272276,127.4,127.36,0.71271321]
[1767327169937,3.19931681,127.39,127.36,0.71271321]
[1767327171152,3.82654441,127.38,127.34,0.71271321]
[1767327171361,3.82654441,127.37,127.34,15.05271321]
[1767327171563,3.82654441,127.37,127.34,0.71271321]
[1767327173274,3.19931681,127.37,127.34,0.71271321]
[1767327174368,3.82654441,127.38,127.34,0.71271321]
[1767327175688,3.19931681,127.37,127.34,0.71271321]
[1767327175879,0.6272276,127.36,127.34,0.71271321]
[1767327176552,3.19931681,127.36,127.34,0.71271321]
[1767327176948,3.82654441,127.36,127.32,8.54857251]
[1767327177157,3.19931681,127.35,127.32,0.69444932]
[1767327178072,3.16931681,127.35,127.32,0.69444932]
[1767327179363,3.13931681,127.35,127.32,0.69444932]
[1767327179567,0.6272276,127.35,127.32,0.69444932]
[1767327179771,3.82654441,127.35,127.32,0.69444932]
[1767327185383,0.6272276,127.35,127.32,0.69444932]
[1767327185583,3.82654441,127.35,127.32,0.69444932]
[1767327191470,3.19931681,127.37,127.34,0.69444932]
[1767327191784,3.82654441,127.38,127.34,0.69444932]
[1767327192684,2.67585179,127.38,127.34,0.69444932]
[1767327193478,2.67585179,127.38,127.35,0.69444932]
[1767327197490,2.04862419,127.37,127.35,0.69444932]
[1767327197866,0.6272276,127.36,127.32,9.90273509]
[1767327198072,2.04862419,127.35,127.32,22.88856022]
[1767327199886,2.04862419,127.35,127.31,2.04862419]
[1767327200086,2.04862419,127.33,127.3,8.5498485]
[1767327200292,2.04862419,127.34,127.32,0.69444932]
[1767327201770,2.04862419,127.33,127.29,8.5503393]
[1767327202392,2.04862419,127.33,127.3,0.69444932]
[1767327202688,7.85194298,127.36,127.3,0.69444932]
[1767327202888,2.04862419,127.34,127.3,0.69444932]
[1767327203394,2.04862419,127.34,127.28,24.71927659]
[1767327203582,2.04862419,127.32,127.29,0.69512718]
[1767327203992,2.04862419,127.32,127.3,0.69512718]
[1767327204293,2.04862419,127.35,127.31,0.69512718]
[1767327204472,2.04862419,127.35,127.32,0.69492955]
[1767327204808,2.04862419,127.34,127.32,0.69492955]
[1767327205292,2.04862419,127.33,127.31,14.34]
[1767327205500,2.04862419,127.33,127.31,15.03492955]
[1767327205797,2.04862419,127.33,127.31,14.34]
[1767327206187,2.04862419,127.33,127.3,0.69492955]
[1767327210702,2.04862419,127.31,127.29,0.69492955]
[1767327211300,2.04862419,127.32,127.29,0.69492955]
[1767327212178,2.04862419,127.33,127.29,0.69492955]
[1767327213171,2.04862419,127.31,127.28,16.86306477]
[1767327215090,2.04862419,127.32,127.28,18.91168896]
[1767327215897,2.04862419,127.31,127.28,16.16813522]
[1767327217701,9.90315624,127.32,127.28,16.16813522]
[1767327219910,9.90237192,127.33,127.29,2.04862419]
[1767327220093,9.90237192,127.33,127.28,18.91168896]
[1767327220290,7.85114234,127.37,127.31,2.04862419]
[1767327220496,2.04862419,127.35,127.31,2.04862419]
[1767327220718,2.04862419,127.35,127.3,2.74355374]
[1767327221288,9.90138264,127.35,127.3,2.74355374]
[1767327221699,9.90138264,127.35,127.3,0.69492955]
[1767327221898,9.90138264,127.35,127.3,2.74355374]
[1767327223394,2.04862419,127.36,127.31,2.04862419]
[1767327223597,2.04862419,127.35,127.31,2.74355374]
[1767327226411,27.47940362,127.37,127.31,2.74355374]
[1767327226613,2.04862419,127.35,127.31,2.74355374]
[1767327227418,2.04862419,127.36,127.32,2.74355374]
[1767327230407,2.04862419,127.36,127.33,0.69492955]
[1767327230808,7.8506701,127.38,127.33,2.04862419]
[1767327231121,2.04862419,127.39,127.35,2.74355374]
[1767327232621,9.89904287,127.39,127.35,0.69492955]
[1767327233416,2.04862419,127.38,127.35,0.69492955]
[1767327236223,9.89894161,127.39,127.35,0.69492955]
[1767327236422,2.04862419,127.38,127.35,0.69492955]
[1767327238816,9.8991628,127.38,127.35,0.69492955]
[1767327241828,2.04862419,127.38,127.35,0.69492955]
[1767327242322,2.04862419,127.39,127.35,0.69492955]
[1767327244027,2.04862419,127.39,127.36,0.72347882]
[1767327245227,9.89854574,127.39,127.36,0.72347882]
[1767327246230,2.04862419,127.39,127.36,0.72347882]
[1767327247713,2.04862419,127.37,127.31,0.72347882]
[1767327247905,2.04862419,127.35,127.32,0.72347882]
[1767327248911,2.04862419,127.34,127.32,0.72347882]
[1767327250038,2.04862419,127.33,127.3,14.34]
[1767327252019,0.70355735,127.34,127.31,0.72347882]
[1767327252020,2.75218154,127.34,127.31,0.72347882]
[1767327253922,2.04862419,127.33,127.31,0.72347882]
[1767327254548,3.20340184,127.33,127.31,0.72347882]
[1767327255243,3.20340184,127.32,127.31,0.72347882]
[1767327255436,3.20340184,127.33,127.31,0.72347882]
[1767327256644,3.20340184,127.32,127.31,0.72347882]
[1767327256848,8.55675426,127.34,127.31,0.72347882]
[1767327257147,3.20340184,127.33,127.31,0.72347882]
[1767327257731,8.55675426,127.34,127.31,0.72347882]
[1767327258046,3.20340184,127.33,127.31,0.72347882]
[1767327258226,3.90695919,127.33,127.29,15.06347882]
[1767327258429,3.90695919,127.33,127.3,0.72347882]
[1767327259341,3.20340184,127.32,127.29,14.34]
[1767327259526,3.20340184,127.32,127.3,0.72347882]
[1767327259723,3.90695919,127.33,127.3,0.72347882]
[1767327260931,3.20340184,127.33,127.3,0.72347882]
[1767327261134,3.20340184,127.34,127.3,0.72347882]
[1767327261325,8.55608806,127.35,127.3,0.72347882]
[1767327261525,3.20340184,127.34,127.3,0.72347882]
[1767327262554,3.90695919,127.34,127.3,0.72347882]
[1767327263527,3.20340184,127.33,127.3,0.72347882]
[1767327263946,3.90695919,127.34,127.3,0.72347882]
[1767327264851,11.75995706,127.34,127.3,0.72347882]
[1767327267656,11.75995706,127.34,127.31,0.66590141]
[1767327271459,8.55655522,127.34,127.31,0.66590141]
[1767327271646,11.75995706,127.34,127.31,0.66590141]
[1767327275558,8.55655522,127.34,127.31,0.66590141]
[1767327275758,11.75995706,127.34,127.31,0.66590141]
[1767327281960,7.8529677,127.35,127.31,3.20340184]
[1767327282143,7.8529677,127.35,127.32,0.66590141]
[1767327283166,8.53234891,127.35,127.32,0.66590141]
[1767327284674,11.73475555,127.36,127.32,0.66590141]
[1767327284968,8.53135371,127.36,127.32,0.66590141]
[1767327285153,11.73475555,127.36,127.32,0.66590141]
[1767327286168,11.73475555,127.36,127.32,3.20340184]
[1767327286468,11.73475555,127.36,127.33,0.66590141]
[1767327286770,8.53135371,127.36,127.33,0.66590141]
[1767327287073,11.73475555,127.36,127.33,0.66590141]
[1767327288970,11.05537434,127.36,127.31,11.05812443]
[1767327289174,3.20340184,127.33,127.3,0.66590141]
[1767327292177,8.53262125,127.34,127.3,0.66590141]
[1767327292352,3.20340184,127.33,127.3,0.66590141]
[1767327296668,11.73602309,127.34,127.3,0.66590141]
[1767327297872,3.20340184,127.33,127.3,0.66590141]
[1767327299471,8.53262125,127.34,127.3,0.66590141]
[1767327299677,11.73602309,127.34,127.3,0.66590141]
[1767327302482,8.53262125,127.34,127.3,0.66590141]
[1767327302678,11.73602309,127.34,127.3,0.66590141]
[1767327304183,3.20340184,127.36,127.32,0.67559595]
[1767327304480,0.70957991,127.36,127.33,0.67559595]
[1767327305163,11.76455678,127.37,127.33,0.67559595]
[1767327305369,5.89225358,127.36,127.33,0.67559595]
[1767327305570,0.70957991,127.36,127.33,0.67559595]
[1767327306760,14.34,127.4,127.35,0.67559595]
[1767327306962,6.60013627,127.39,127.36,0.67559595]
[1767327307166,3.91298175,127.39,127.36,0.67559595]
[1767327307882,0.70957991,127.38,127.36,0.67559595]
[1767327308178,11.05348661,127.39,127.36,0.67559595]
[1767327308179,0.70957991,127.39,127.36,0.67559595]
[1767327308677,3.91298175,127.39,127.36,0.67559595]
[1767327309379,0.70957991,127.39,127.36,0.67559595]
[1767327309880,3.91298175,127.39,127.36,0.67559595]
[1767327310078,0.70957991,127.38,127.36,0.67559595]
[1767327310386,0.70957991,127.37,127.35,0.67559595]
[1767327311372,0.70957991,127.39,127.35,0.67559595]
[1767327311557,3.91298175,127.38,127.35,0.67559595]
[1767327314484,2.758201,127.38,127.35,0.67559595]
[1767327316189,0.70957991,127.37,127.34,0.67559595]
[1767327324894,0.70957991,127.37,127.34,0.71311144]
[1767327325805,0.70957991,127.37,127.34,8.56604718]
[1767327327200,0.68090066,127.4,127.35,0.71311144]
[1767327327399,2.72952175,127.39,127.35,0.71311144]
[1767327327576,0.68090066,127.38,127.35,0.71311144]
[1767327328101,2.72952175,127.38,127.35,0.71311144]
[1767327330179,2.04862109,127.38,127.35,0.71311144]
[1767327333105,0.68090066,127.39,127.35,0.71311144]
[1767327333315,2.04862109,127.38,127.35,0.71311144]
[1767327333990,2.72952175,127.38,127.35,0.71311144]
[1767327338007,2.04862109,127.38,127.35,0.71311144]
[1767327338508,2.04862109,127.39,127.35,0.71311144]
[1767327338806,2.72952175,127.39,127.35,0.71311144]
[1767327340409,10.57944042,127.39,127.35,0.71311144]
[1767327342407,2.04862109,127.39,127.35,0.71311144]
[1767327343001,19.62266879,127.41,127.35,0.71311144]
[1767327343204,5.87775449,127.4,127.35,0.71311144]
[1767327343403,2.04862109,127.38,127.35,0.71311144]
[1767327344623,2.09119925,127.39,127.35,0.71311144]
[1767327351704,9.94113458,127.39,127.35,0.71311144]
[1767327352517,2.04862109,127.38,127.35,0.71311144]
[1767327352822,2.04862109,127.37,127.33,15.05311144]
[1767327353020,2.04862109,127.36,127.34,0.71311144]
[1767327353213,2.09119925,127.36,127.33,15.05311144]
[1767327353810,2.09119925,127.36,127.34,0.70656756]
[1767327355702,2.09119925,127.36,127.33,15.04656756]
[1767327355905,2.04862109,127.35,127.33,14.34]
[1767327356106,2.04862109,127.35,127.34,0.70656756]
[1767327356509,2.04862109,127.35,127.33,14.34]
[1767327356828,2.04862109,127.35,127.33,15.04656756]
[1767327357029,2.04862109,127.35,127.33,14.34]
[1767327357229,2.04862109,127.35,127.34,0.70656756]
[1767327359424,2.04862109,127.36,127.34,0.70656756]
[1767327360612,2.04862109,127.37,127.34,0.70656756]
[1767327361230,2.04862109,127.36,127.33,14.34]
[1767327361424,2.04862109,127.35,127.33,15.04656756]
[1767327361627,2.04862109,127.35,127.33,0.70656756]
[1767327361815,0.04257816,127.36,127.33,0.70656756]
[1767327362012,2.04862109,127.35,127.33,0.70656756]
[1767327365232,2.04862109,127.36,127.33,0.70656756]
[1767327366816,2.09119925,127.37,127.33,0.70656756]
[1767327369737,0.04257816,127.36,127.33,0.70656756]
[1767327370238,2.04862109,127.37,127.33,0.70656756]
[1767327370427,2.09119925,127.37,127.33,0.70656756]
[1767327371439,2.09119925,127.35,127.31,14.34]
[1767327371624,2.09119925,127.34,127.31,0.70656756]
[1767327371819,2.04862109,127.33,127.3,0.70656756]
[1767327372021,2.04862109,127.32,127.3,0.70656756]
[1767327372220,2.04862109,127.33,127.3,0.70656756]
[1767327373542,2.09119925,127.33,127.3,0.70656756]
[1767327374462,2.04862109,127.31,127.3,0.70656756]
[1767327374930,2.01862109,127.31,127.3,0.70656756]
[1767327375333,2.01862109,127.31,127.29,0.70656756]
[1767327376555,3.20430327,127.31,127.29,0.70656756]
[1767327377255,0.04257816,127.33,127.29,0.70656756]
[1767327377256,3.20430327,127.32,127.29,0.70656756]
[1767327379641,0.04257816,127.33,127.29,0.70656756]
[1767327379838,3.20430327,127.32,127.29,0.70656756]
[1767327380035,0.04257816,127.33,127.29,0.70656756]
[1767327380224,3.20430327,127.32,127.29,0.70656756]
[1767327381529,0.04257816,127.32,127.29,0.70656756]
[1767327381729,3.24688143,127.32,127.29,0.70656756]
[1767327382246,0.04257816,127.32,127.29,0.70656756]
[1767327382443,3.24688143,127.32,127.29,0.70656756]
[1767327382650,3.20430327,127.32,127.29,0.70656756]
[1767327384942,3.24688143,127.31,127.28,31.19645991]
[1767327385143,3.20430327,127.31,127.29,0.68832469]
[1767327386237,0.04257816,127.3,127.28,16.16813522]
[1767327386433,3.20430327,127.29,127.28,16.85645991]
[1767327386833,2.47930327,127.29,127.28,16.85645991]
[1767327387547,2.44930327,127.29,127.28,16.85645991]
[1767327396462,8.5710921,127.31,127.28,16.85645991]
[1767327396680,3.20430327,127.29,127.28,16.85645991]
[1767327397169,3.20430327,127.3,127.29,0.68832469]
[1767327397549,3.20430327,127.31,127.29,0.68832469]
[1767327400762,3.20430327,127.32,127.29,0.68832469]
[1767327400969,3.20430327,127.32,127.3,0.68832469]
[1767327402056,3.92016562,127.32,127.3,0.68832469]
[1767327403472,0.71586235,127.32,127.3,0.68832469]
[1767327403651,3.20430327,127.32,127.3,0.68832469]
[1767327411753,0.71586235,127.33,127.3,0.68832469]
[1767327411953,3.20430327,127.33,127.3,0.68832469]
[1767327412267,3.92016562,127.35,127.31,0.68832469]
[1767327412879,3.20430327,127.34,127.31,0.68832469]
[1767327415475,3.92250563,127.34,127.31,0.68832469]
[1767327415892,3.20430327,127.34,127.31,0.68832469]
[1767327416276,3.92250563,127.35,127.31,7.85466524]
[1767327416578,3.92250563,127.35,127.32,0.6888994]
[1767327417263,7.85136031,127.37,127.32,0.6888994]
[1767327417464,0.71820236,127.35,127.32,0.6888994]
[1767327417664,0.71820236,127.35,127.31,11.74786791]
[1767327418980,3.20430327,127.35,127.31,8.54356464]
[1767327419281,0.71820236,127.34,127.31,8.54356464]
[1767327420066,0.71820236,127.34,127.31,11.74786791]
[1767327420886,0.71820236,127.34,127.31,8.54356464]
[1767327421086,0.71820236,127.34,127.31,11.74786791]
[1767327421787,0.71820236,127.34,127.32,0.6888994]
[1767327421982,8.75673801,127.43,127.34,0.6888994]
[1767327422279,0.71820236,127.4,127.37,0.6888994]
[1767327423284,3.92250563,127.4,127.37,0.6888994]
[1767327426385,0.71820236,127.4,127.37,0.6888994]
[1767327428180,3.20430327,127.4,127.36,14.34]
[1767327428387,3.92250563,127.39,127.36,15.0288994]
[1767327430391,0.71820236,127.39,127.36,15.0288994]
[1767327430690,3.92250563,127.39,127.36,15.0288994]
[1767327431491,0.71820236,127.39,127.36,15.0288994]
[1767327431692,3.92250563,127.39,127.36,15.0288994]
[1767327435187,3.20430327,127.39,127.36,15.0288994]
[1767327435390,0.71820236,127.38,127.36,14.34]
[1767327436410,0.71820236,127.39,127.36,15.0288994]
[1767327437724,0.71820236,127.39,127.37,0.6888994]
[1767327438709,2.04797687,127.4,127.37,0.6888994]
[1767327438913,2.76617923,127.4,127.37,0.6888994]
[1767327439914,2.04797687,127.4,127.37,0.6888994]
[1767327440090,0.71820236,127.39,127.36,22.88059665]
[1767327443892,0.71820236,127.39,127.36,15.0288994]
[1767327454918,0.71820236,127.39,127.36,22.88065786]
[1767327455098,0.71820236,127.39,127.36,22.8860489]
[1767327455503,0.71696856,127.41,127.37,0.69429044]
[1767327455702,0.71696856,127.4,127.37,0.69429044]
[1767327455898,2.04797687,127.4,127.37,0.69429044]
[1767327456099,0.71696856,127.39,127.37,0.69429044]
[1767327461721,2.04797687,127.41,127.38,0.69429044]
[1767327461935,0.71696856,127.43,127.38,2.04797687]
[1767327462135,0.71696856,127.44,127.4,2.04797687]
[1767327462422,0.71696856,127.44,127.4,2.74226731]
[1767327462621,0.71696856,127.43,127.4,0.69429044]
[1767327463918,2.04797687,127.44,127.38,19.62546376]
[1767327463919,0.71696856,127.41,127.38,0.69429044]
[1767327464422,2.76494543,127.4,127.37,0.69429044]
[1767327465925,0.71696856,127.4,127.37,0.69429044]
[1767327468513,0.71696856,127.4,127.37,8.54541818]
[1767327468708,0.71696856,127.41,127.38,0.69429044]
[1767327471424,0.68951799,127.4,127.37,0.68687533]
[1767327472523,0.68951799,127.4,127.37,2.7348522]
[1767327473134,0.68951799,127.4,127.38,0.68687533]
[1767327473833,7.84771083,127.43,127.38,0.68687533]
[1767327474035,2.77251134,127.42,127.38,0.68687533]
[1767327474333,0.72453447,127.41,127.38,0.68687533]
[1767327475012,2.04797687,127.42,127.38,0.68687533]
[1767327475013,0.72453447,127.42,127.39,0.71155891]
[1767327481044,0.72453447,127.42,127.39,2.75953578]
[1767327481342,0.72453447,127.42,127.39,0.71155891]
[1767327482049,2.77251134,127.42,127.39,0.71155891]
[1767327483739,2.04797687,127.42,127.38,9.89834198]
[1767327483941,0.72453447,127.41,127.38,10.60990089]
[1767327488433,9.89543707,127.43,127.38,9.89834198]
[1767327488639,0.72453447,127.42,127.39,0.71155891]
[1767327490235,0.72453447,127.42,127.38,2.75953578]
[1767327490436,2.77251134,127.42,127.39,0.71155891]
[1767327490749,2.04797687,127.42,127.39,0.71155891]
[1767327490958,0.72453447,127.41,127.39,0.71155891]
[1767327496855,0.72453447,127.41,127.38,2.75953578]
[1767327497944,0.72453447,127.41,127.38,2.04797687]
[1767327498357,0.72453447,127.41,127.38,2.75953578]
[1767327499757,0.72453447,127.41,127.39,0.71155891]
[1767327500468,2.04797687,127.42,127.39,0.71155891]
[1767327500658,3.92330343,127.42,127.39,0.71155891]
[1767327501648,0.72453447,127.39,127.33,0.71155891]
[1767327501841,3.19876896,127.37,127.33,0.71155891]
[1767327502833,3.19876896,127.37,127.33,8.56473779]
[1767327503039,3.19876896,127.37,127.34,0.71155891]
[1767327504646,3.92330343,127.38,127.34,0.71155891]
[1767327504953,7.84933425,127.4,127.35,0.67375671]
[1767327505157,3.19876896,127.38,127.35,0.67375671]
[1767327505759,3.86019686,127.39,127.35,0.67375671]
[1767327506470,3.86019686,127.38,127.35,0.67375671]
[1767327510453,3.19876896,127.39,127.35,0.67375671]
[1767327510658,3.86019686,127.39,127.36,0.67375671]
[1767327516379,3.86019686,127.38,127.36,0.67375671]
[1767327516773,3.19876896,127.37,127.35,15.01375671]
[1767327517357,3.19876896,127.37,127.35,0.67375671]
[1767327518861,3.86019686,127.38,127.35,0.67375671]
[1767327523188,3.86019686,127.39,127.35,0.67375671]
[1767327525883,3.19876896,127.38,127.35,0.67375671]
[1767327528062,3.86019686,127.38,127.35,0.67375671]
[1767327528275,3.86019686,127.37,127.35,0.67375671]
[1767327528487,3.19876896,127.36,127.34,0.67375671]
[1767327528893,3.86019686,127.37,127.34,0.67375671]
[1767327529694,3.19876896,127.35,127.31,0.67375671]
[1767327530012,0.6614279,127.35,127.31,0.67375671]
[1767327530208,3.86019686,127.35,127.31,0.67375671]
[1767327531204,3.86019686,127.35,127.32,0.67375671]
[1767327531809,0.6614279,127.39,127.32,0.67375671]
[1767327532009,3.86019686,127.37,127.34,0.67375671]
[1767327534312,3.19876896,127.37,127.34,0.67375671]
[1767327534729,8.54053457,127.38,127.34,0.67375671]
[1767327534890,3.88867121,127.39,127.34,0.67375671]
[1767327535096,0.68990225,127.39,127.35,0.66370278]
[1767327535294,3.88867121,127.39,127.35,0.66370278]
[1767327537509,0.68990225,127.39,127.35,0.66370278]
[1767327537825,3.88867121,127.39,127.35,0.66370278]
[1767327538420,3.88867121,127.39,127.36,0.66370278]
[1767327545227,0.68990225,127.39,127.36,0.66370278]
[1767327545426,3.88867121,127.39,127.36,0.66370278]
[1767327547130,3.19876896,127.39,127.36,0.66370278]
[1767327547710,3.88867121,127.39,127.36,0.66370278]
[1767327549225,0.68990225,127.39,127.36,0.66370278]
[1767327549422,3.88867121,127.39,127.36,0.66370278]
[1767327551825,3.19876896,127.38,127.36,0.66370278]
[1767327555938,3.88867121,127.38,127.35,0.66370278]
[1767327556840,3.19876896,127.38,127.35,0.66370278]
[1767327558834,3.88867121,127.37,127.34,0.66370278]
[1767327559942,3.19876896,127.37,127.34,0.66370278]
[1767327560417,8.54061741,127.38,127.34,0.66370278]
[1767327560617,2.04888199,127.37,127.34,0.66370278]
[1767327561725,2.73878424,127.37,127.34,0.66370278]
[1767327563334,2.04888199,127.37,127.34,0.66370278]
[1767327563519,2.7563197,127.37,127.34,0.66370278]
[1767327566743,0.71708736,127.36,127.33,14.99814215]
[1767327568441,0.71708736,127.36,127.33,14.34]
[1767327568628,0.71708736,127.36,127.34,0.65814215]
[1767327568826,2.76596935,127.36,127.33,14.99814215]
[1767327570619,2.76596935,127.36,127.33,0.65814215]
[1767327570924,0.71708736,127.35,127.32,0.65814215]
[1767327571533,2.04888199,127.36,127.32,0.65814215]
[1767327571844,2.76596935,127.36,127.32,0.65814215]
[1767327574043,2.76596935,127.36,127.33,0.65814215]
[1767327574946,0.71708736,127.36,127.33,0.65814215]
[1767327575147,2.76596935,127.36,127.33,0.65814215]
[1767327578830,0.71708736,127.35,127.33,0.65814215]
[1767327579928,2.76596935,127.35,127.33,0.65814215]
[1767327580127,0.71708736,127.35,127.33,0.65814215]
[1767327581047,2.76596935,127.35,127.33,0.65814215]
[1767327582347,2.76596935,127.35,127.31,16.38888199]
[1767327582646,2.76596935,127.35,127.32,0.65814215]
[1767327586755,0.71708736,127.34,127.31,14.34]
[1767327587047,0.71708736,127.34,127.31,14.99814215]
[1767327587632,2.76596935,127.34,127.31,14.99814215]
[1767327589335,0.71708736,127.34,127.31,14.99814215]
[1767327589530,2.76596935,127.34,127.31,14.99814215]
[1767327590852,10.61906732,127.34,127.31,0.65814215]
[1767327591054,2.04888199,127.33,127.31,0.65814215]
[1767327591456,2.04888199,127.33,127.29,22.19587496]
[1767327591839,0.71708736,127.32,127.29,14.99814215]
[1767327592040,0.71708736,127.32,127.3,0.65814215]
[1767327592638,7.85309797,127.34,127.3,0.65814215]
[1767327592835,2.04888199,127.31,127.29,0.65814215]
[1767327593348,2.04888199,127.3,127.28,16.16813522]
[1767327594759,2.09937279,127.3,127.28,16.16813522]
[1767327595345,2.09937279,127.3,127.28,16.85683878]
[1767327595656,2.09937279,127.3,127.28,16.16813522]
[1767327596251,2.09937279,127.31,127.28,16.16813522]
[1767327596439,2.09937279,127.31,127.28,16.85683878]
[1767327599564,2.04888199,127.29,127.28,16.11764442]
[1767327599742,2.04888199,127.3,127.28,16.11764442]
[1767327600061,2.04888199,127.3,127.28,16.80634798]
[1767327600452,2.04888199,127.31,127.28,16.80634798]
[1767327601866,2.04888199,127.31,127.28,16.11764442]
[1767327602045,2.04888199,127.29,127.26,0.2]
[1767327604056,7.85484251,127.31,127.26,0.2]
[1767327604262,2.04888199,127.29,127.26,0.2]
[1767327604776,2.04888199,127.3,127.26,0.88870356]
[1767327605269,2.04888199,127.29,127.26,0.88870356]
[1767327608164,7.85484251,127.31,127.26,0.88870356]
[1767327608468,2.04888199,127.29,127.26,0.88870356]
[1767327608664,7.85484251,127.31,127.26,0.88870356]
[1767327608966,2.04888199,127.29,127.26,0.88870356]
[1767327611468,2.04888199,127.3,127.27,0.68870356]
[1767327612162,2.04888199,127.29,127.27,0.68870356]
[1767327617778,7.85484251,127.31,127.27,0.68870356]
[1767327617979,2.04888199,127.29,127.27,0.68870356]
[1767327622576,3.20529641,127.29,127.27,0.68870356]
[1767327623354,11.06149153,127.29,127.27,0.68870356]
[1767327623556,3.20529641,127.28,127.27,0.68870356]
[1767327624880,3.20529641,127.29,127.27,0.68870356]
[1767327626458,3.20529641,127.29,127.26,0.90720123]
[1767327626657,3.20529641,127.28,127.26,0.90720123]
[1767327627089,7.85571662,127.3,127.26,0.90720123]
[1767327627393,3.20529641,127.28,127.26,0.90720123]
[1767327628468,3.20529641,127.29,127.26,0.90720123]
[1767327630279,3.20529641,127.29,127.27,0.70720123]
[1767327630985,3.20529641,127.3,127.27,0.70720123]
[1767327632987,19.63632637,127.32,127.27,0.70720123]
[1767327633290,3.20529641,127.3,127.27,0.70720123]
[1767327635086,7.85505408,127.31,127.27,0.70720123]
[1767327635261,3.20529641,127.3,127.27,0.70720123]
[1767327638289,3.20529641,127.29,127.27,0.70720123]
[1767327640273,7.85524884,127.31,127.27,0.70720123]
[1767327640469,3.20529641,127.29,127.27,0.70720123]
[1767327647315,3.20529641,127.32,127.26,0.2]
[1767327647475,3.20529641,127.27,127.23,0.90720123]
[1767327647795,3.20529641,127.24,127.23,0.90720123]
[1767327647976,14.36,127.29,127.23,0.90720123]
[1767327648171,11.18939582,127.28,127.23,0.90720123]
[1767327648372,11.18939582,127.27,127.23,0.90720123]
[1767327648576,3.20529641,127.25,127.23,0.90720123]
[1767327649492,7.8577036,127.27,127.23,0.90720123]
[1767327649692,3.20529641,127.25,127.23,0.90720123]
[1767327650404,3.20529641,127.24,127.23,0.90720123]
[1767327650786,27.50098167,127.27,127.23,0.90720123]
[1767327650993,3.20529641,127.24,127.23,0.90720123]
[1767327651187,27.50098167,127.27,127.23,0.90720123]
[1767327651393,3.20529641,127.24,127.23,0.90720123]
[1767327652902,3.20529641,127.24,127.21,0.70720123]
[1767327653706,19.64327807,127.27,127.21,0.70720123]
[1767327653898,3.20529641,127.24,127.21,0.70720123]
[1767327655787,3.20529641,127.25,127.21,0.70720123]
[1767327656804,11.06388995,127.25,127.21,0.70720123]
[1767327658603,3.20529641,127.24,127.21,0.70720123]
[1767327658906,3.20529641,127.22,127.2,0.2]
[1767327659113,3.20529641,127.21,127.2,0.2]
[1767327659313,14.36,127.25,127.2,0.2]
[1767327659314,3.20529641,127.22,127.2,0.2]
[1767327659696,14.36,127.25,127.2,0.86740184]
[1767327659903,3.20529641,127.23,127.2,0.86740184]
[1767327664020,7.85854616,127.25,127.2,0.2]
[1767327664315,3.20529641,127.23,127.21,0.66740184]
[1767327665425,3.20529641,127.23,127.2,0.2]
[1767327665426,11.06514454,127.23,127.2,0.86740184]
[1767327666002,3.20529641,127.22,127.2,0.86740184]
[1767327666921,3.20529641,127.21,127.19,0.2]
[1767327667126,3.20529641,127.2,127.19,0.2]
[1767327667506,3.20529641,127.2,127.17,0.66740184]
[1767327667703,3.20529641,127.19,127.17,0.66740184]
[1767327669532,27.51139757,127.22,127.15,17.56529641]
[1767327669533,19.65099827,127.22,127.16,0.66740184]